[Event "GCT Zagreb 2019"]
[Site "Zagreb"]
[Date "2019.06.26"]
[Round "1.3"]
[White "So, Wesley"]
[Black "Ding, Liren"]
[Result "1-0"]
[ECO "A23"]
[WhiteElo "2754"]
[BlackElo "2805"]
[Annotator "RC"]
[PlyCount "99"]
[EventDate "2019.06.26"]
[EventType "tourn"]
[EventCountry "CRO"]
[SourceTitle "playchess.com"]
[Source "ChessBase"]
[SourceQuality "1"]
[TimeMode "Bronstein"]
[TimeControl "7200+30"]

1. c4 {[%emt 0:00:00]} e5 {[%emt 0:00:00]} 2. g3 {[%emt 0:00:00]} Nf6 {[%emt 0:00:00]} 3. Bg2 {[%emt 0:00:00]} Bc5 {[%emt 0:00:00]} 4. Nc3 {[%emt 0:00:00]} c6 {[%emt 0:00:00]} 5. e3 {[%emt 0:00:00]} O-O {[%emt 0:00:00]} 6. Nge2 {[%emt 0:01:51]} d5 {[%emt 0:00:00]} 7. cxd5 {[%emt 0:00:30]} Nxd5 {[%emt 0:00:00]} 8. d4 {[%emt 0:08:17]} exd4 {[%emt 0:00:00]} 9. Nxd5 {[%emt 0:00:36]} cxd5 {[%emt 0:00:00]} 10. exd4 {[%emt 0:00:30]} Bb6 {[%emt 0:00:00]} 11. Nc3 {[%emt 0:08:36]} Nc6 {[%emt 0:11:40]} 12. Be3 {[%emt 0:01:34]} Be6 {[%emt 0:00:30]} 13. O-O {[%emt 0:00:30]} Qd7 {[%emt 0:00:30]} 14. Na4 {[%emt 0:05:40]} Rfd8 {[%emt 0:00:30]} 15. Nxb6 {[%emt 0:06:33]} axb6 {[%emt 0:00:30]} 16. Qb3 {[%emt 0:00:35]} Ra6 {[%emt 0:10:03]} 17. Rfc1 {[%emt 0:02:54]} Bh3 {[%emt 0:07:59]} 18. Bf3 {[%emt 0:04:14]} Bg4 {[%emt 0:08:15]} 19. Bg2 {[%emt 0:00:30]} Bh3 {[%emt 0:00:30]} 20. Bf3 {[%emt 0:00:30]} Bg4 {[%emt 0:00:30]} 21. Bh1 {[%emt 0:00:30]} h5 {[%emt 0:05:42]} 22. h4 {[%emt 0:02:22]} Be2 {[%emt 0:11:08]} 23. Kh2 {[%emt 0:08:03]} Qf5 {[%emt 0:10:58]} 24. Bg2 {[%emt 0:22:06]} Na5 {[%emt 0:04:52]} 25. Qc3 {[%emt 0:05:34]} Nc6 {[%emt 0:01:18]} 26. b3 {[%emt 0:01:30]} b5 {[%emt 0:02:05]} 27. Qd2 {[%emt 0:03:04]} Bf3 {[%emt 0:04:44]} 28. Bf1 {[%emt 0:02:17]} Rb6 {[%emt 0:01:52]} 29. Bf4 {[%emt 0:04:15]} Rc8 {[%emt 0:13:23]} 30. Rc3 {[%emt 0:03:09]} Bg4 {[%emt 0:00:30]} 31. f3 {[%emt 0:00:38]} b4 {[%emt 0:00:30]} 32. Rd3 {[%emt 0:04:23]} Bxf3 {[%emt 0:01:08]} 33. Rxf3 {[%emt 0:00:30]} Ne5 {[%emt 0:00:30]} 34. dxe5 {[%emt 0:00:49]} Rc2 {[%emt 0:00:30]} 35. Rf2 {[%emt 0:01:38]} Rxd2 {[%emt 0:00:30]} 36. Rxd2 {[%emt 0:00:30]} Rc6 {[%emt 0:01:58]} 37. Bh3 {[%emt 0:02:09]} Qg6 {[%emt 0:00:30]} 38. Rad1 {[%emt 0:00:30]} Ra6 {[%emt 0:00:36]} 39. Bg2 {[%emt 0:01:12]} d4 {[%emt 0:00:21]} 40. Bxb7 {[%emt 0:00:30]} Ra5 {[%emt 0:00:30]} 41. Rxd4 {[%emt 0:02:28]} Rxa2+ {[%emt 0:00:30]} 42. R1d2 {[%emt 0:00:30]} Qb6 {[%emt 0:01:56]} 43. Rxa2 {[%emt 0:00:30]} Qxd4 {[%emt 0:00:30]} 44. Rd2 {[%emt 0:00:30]} Qc3 {[%emt 0:00:30]} 45. Bd5 {[%emt 0:01:56]} Kf8 {[%emt 0:00:30]} 46. Bc4 {[%emt 0:00:30]} Ke7 {[%emt 0:00:30]} 47. Bg5+ {[%emt 0:00:30]} f6 {[%emt 0:00:30]} 48. exf6+ {[%emt 0:00:30]} gxf6 {[%emt 0:00:30]} 49. Re2+ {[%emt 0:00:30]} Kd7 {[%emt 0:00:30]} 50. Bd2 {[%emt 0:00:30]} 1-0

[Event "GCT Zagreb 2019"]
[Site "Zagreb"]
[Date "2019.07.05"]
[Round "9.5"]
[White "Mamedyarov, Shakhriyar"]
[Black "Anand, Viswanathan"]
[Result "1-0"]
[ECO "D24"]
[WhiteElo "2774"]
[BlackElo "2767"]
[Annotator "ChessBase"]
[PlyCount "89"]
[EventDate "2019.06.26"]
[EventType "tourn"]
[EventCountry "CRO"]
[SourceTitle "playchess.com"]
[Source "ChessBase"]
[SourceQuality "1"]
[TimeMode "Bronstein"]
[TimeControl "7200+30"]

1. d4 {[%emt 0:00:00]} Nf6 {[%emt 0:00:00]} 2. c4 {[%emt 0:00:00]} e6 {[%emt 0:00:00]} 3. Nf3 {[%emt 0:00:00]} d5 {[%emt 0:00:00]} 4. Nc3 {[%emt 0:00:00]} dxc4 {[%emt 0:00:00]} 5. e4 {[%emt 0:00:00]} Bb4 {[%emt 0:00:00]} 6. Bxc4 {[%emt 0:00:00]} Nxe4 {[%emt 0:00:00]} 7. O-O {[%emt 0:00:00]} Nf6 {[%emt 0:00:00]} 8. Qa4+ {[%emt 0:00:00]} Nc6 {[%emt 0:00:00]} 9. Bg5 {[%emt 0:00:00]} Bxc3 {[%emt 0:00:00]} 10. bxc3 {[%emt 0:00:00]} O-O {[%emt 0:00:00]} 11. Rfe1 {[%emt 0:00:00]} Ne7 {[%emt 0:00:00]} 12. Bd3 {[%emt 0:00:00]} Nf5 {[%emt 0:00:00]} 13. Rad1 {[%emt 0:03:37]} h6 {[%emt 0:02:14]} 14. Bc1 {[%emt 0:01:53]} b6 {[%emt 0:12:57]} 15. c4 {[%emt 0:02:38]} Re8 {[%emt 0:08:48]} 16. Bb2 {[%emt 0:14:57]} Bb7 {[%emt 0:07:27]} 17. Ne5 {[%emt 0:01:50]} Ne7 {[%emt 0:07:21]} 18. Bb1 {[%emt 0:08:25]} c5 {[%emt 0:13:34]} 19. Qc2 {[%emt 0:04:28]} Qc7 {[%emt 0:11:08]} 20. dxc5 {[%emt 0:20:26]} Rad8 {[%emt 0:13:20]} 21. cxb6 {[%emt 0:19:13]} axb6 {[%emt 0:03:05]} 22. Ng4 {[%emt 0:00:32]} Ne4 {[%emt 0:00:53]} 23. f3 {[%emt 0:10:02]} Qc5+ {[%emt 0:10:41]} 24. Kh1 {[%emt 0:00:30]} h5 {[%emt 0:01:35]} 25. Nh6+ {[%emt 0:00:39]} gxh6 {[%emt 0:00:30]} 26. fxe4 {[%emt 0:00:30]} e5 {[%emt 0:00:30]} 27. Rd5 {[%emt 0:04:24]} Bxd5 {[%emt 0:01:59]} 28. exd5 {[%emt 0:00:30]} Ng6 {[%emt 0:00:40]} 29. Rf1 {[%emt 0:01:33]} Re7 {[%emt 0:05:59]} 30. Qc1 {[%emt 0:04:24]} Ra7 {[%emt 0:07:30]} 31. h3 {[%emt 0:04:05]} Rd6 {[%emt 0:04:38]} 32. Qxh6 {[%emt 0:02:23]} Re7 {[%emt 0:03:01]} 33. Qc1 {[%emt 0:05:06]} b5 {[%emt 0:01:03]} 34. Ba3 {[%emt 0:01:10]} b4 {[%emt 0:00:30]} 35. Bb2 {[%emt 0:00:30]} Ra6 {[%emt 0:02:27]} 36. Rf5 {[%emt 0:06:10]} f6 {[%emt 0:03:04]} 37. Qh6 {[%emt 0:02:38]} Nf4 {[%emt 0:04:17]} 38. Bxe5 {[%emt 0:04:49]} Rxe5 {[%emt 0:00:30]} 39. Rxe5 {[%emt 0:01:33]} fxe5 {[%emt 0:00:38]} 40. Qxa6 {[%emt 0:00:30]} Qf2 {[%emt 0:00:44]} 41. Qc8+ {[%emt 0:00:30]} Kf7 {[%emt 0:00:30]} 42. Qf5+ {[%emt 0:00:30]} Kg8 {[%emt 0:00:43]} 43. Qg5+ {[%emt 0:01:31]} Kf8 {[%emt 0:00:31]} 44. Kh2 {[%emt 0:00:45]} h4 {[%emt 0:01:07]} 45. Bf5 {[%emt 0:01:04]} 1-0

[Event "GCT Zagreb 2019"]
[Site "Zagreb"]
[Date "2019.07.06"]
[Round "10.5"]
[White "Giri, Anish"]
[Black "Nakamura, Hikaru"]
[Result "1/2-1/2"]
[ECO "C67"]
[WhiteElo "2779"]
[BlackElo "2754"]
[Annotator "RC"]
[PlyCount "77"]
[EventDate "2019.06.26"]
[EventType "tourn"]
[EventCountry "CRO"]
[SourceTitle "playchess.com"]
[Source "ChessBase"]
[SourceQuality "1"]
[TimeMode "Bronstein"]
[TimeControl "7200+30"]

1. e4 {[%emt 0:00:00]} e5 {[%emt 0:00:00]} 2. Nf3 {[%emt 0:00:00]} Nc6 {[%emt 0:00:00]} 3. Bb5 {[%emt 0:00:00]} Nf6 {[%emt 0:00:00]} 4. O-O {[%emt 0:00:00]} Nxe4 {[%emt 0:00:00]} 5. d4 {[%emt 0:00:00]} Nd6 {[%emt 0:00:00]} 6. Bxc6 {[%emt 0:00:00]} dxc6 {[%emt 0:00:00]} 7. dxe5 {[%emt 0:00:00]} Nf5 {[%emt 0:00:00]} 8. Qxd8+ {[%emt 0:00:00]} Kxd8 {[%emt 0:00:00]} 9. h3 {[%emt 0:00:00]} Ke8 {[%emt 0:00:00]} 10. Nc3 {[%emt 0:00:00]} h5 {[%emt 0:00:00]} 11. Bf4 {[%emt 0:00:00]} Be7 {[%emt 0:00:00]} 12. Rad1 {[%emt 0:00:00]} Be6 {[%emt 0:00:00]} 13. Ng5 {[%emt 0:00:00]} Rh6 {[%emt 0:00:00]} 14. Rfe1 {[%emt 0:00:00]} Bb4 {[%emt 0:00:00]} 15. a3 {[%emt 0:00:00]} Bxc3 {[%emt 0:00:00]} 16. bxc3 {[%emt 0:00:00]} h4 {[%emt 0:00:00]} 17. g4 {[%emt 0:00:00]} hxg3 {[%emt 0:00:00]} 18. fxg3 {[%emt 0:00:00]} Kf8 {[%emt 0:00:00]} 19. Kf2 {[%emt 0:17:20]} Ne7 {[%emt 0:00:00]} 20. g4 {[%emt 0:11:31]} Nd5 {[%emt 0:00:00]} 21. Bd2 {[%emt 0:01:03]} Nb6 {[%emt 0:00:00]} 22. Kg3 {[%emt 0:10:52]} Nc4 {[%emt 0:00:00]} 23. Bc1 {[%emt 0:04:11]} Bd5 {[%emt 0:00:00]} 24. Re2 {[%emt 0:12:45]} Re8 {[%emt 0:00:17]} 25. Rde1 {[%emt 0:00:30]} Kg8 {[%emt 0:09:10]} 26. Ne4 {[%emt 0:09:23]} Rhe6 {[%emt 0:00:30]} 27. Nc5 {[%emt 0:00:30]} Rxe5 {[%emt 0:00:30]} 28. Rxe5 {[%emt 0:00:30]} Rxe5 {[%emt 0:00:30]} 29. Rxe5 {[%emt 0:00:30]} Nxe5 {[%emt 0:00:30]} 30. Nxb7 {[%emt 0:00:30]} Nc4 {[%emt 0:01:24]} 31. Nc5 {[%emt 0:00:30]} Nd6 {[%emt 0:00:30]} 32. Bf4 {[%emt 0:03:17]} Ne4+ {[%emt 0:00:30]} 33. Nxe4 {[%emt 0:00:30]} Bxe4 {[%emt 0:00:30]} 34. Bxc7 {[%emt 0:00:30]} f6 {[%emt 0:00:30]} 35. Bd6 {[%emt 0:00:30]} Bxc2 {[%emt 0:00:30]} 36. Bc7 {[%emt 0:00:30]} Bd3 {[%emt 0:00:30]} 37. Bd6 {[%emt 0:00:30]} Bc2 {[%emt 0:00:30]} 38. Bc7 {[%emt 0:00:30]} Bd3 {[%emt 0:00:30]} 39. Bd6 {[%emt 0:00:30]} 1/2-1/2